Cogmind - Beta 15 @@@ ROGUE MODE // 2025.10.14 @ 09:46:37 Player: weras Result: Destroyed by S-10 Pest with Light Assault Rifle Performance ------------- Evolutions (0) 0 Regions Visited (4) 800 Robots Destroyed (27) 135 Value Destroyed (495) 495 Prototype IDs (23) 460 Alien Tech Used (0) 0 Bonus (300) 300 TOTAL SCORE: 2190 Bonus ------- Aligned with FarCom 300 Cogmind --------- Core Integrity 0/250 Matter 288/300 Energy 160/160 System Corruption 0% Temperature Cool (0) Movement Rolling (135) Ox3 Location -9/Mines Parts ------- > --- POWER (1) -------- Light Nuclear Core > --- PROPULSION (2) --- Wheel Compact Wheel > --- UTILITY (2) ------ Huge Storage Unit Terrain Scanner > --- WEAPON (2) ------- Grenade Launcher Rocket Launcher > --- INVENTORY (25) --- Ion Engine Light Treads Improved Heat Sink Improved Heat Sink High-capacity Matter Pod (200) EM Pulse Gun Assault Rifle Assault Rifle Assault Rifle AWS/Gauss Makeshift Spear Explosive Trap Explosive Trap Explosive Trap Peak State ------------ > --- POWER ------------ Light Nuclear Core > --- PROPULSION ------- Wheel Compact Wheel > --- UTILITY ---------- Huge Storage Unit Terrain Scanner > --- WEAPON ----------- AWS/Gauss > --- INVENTORY -------- Ion Engine Light Treads Improved Heat Sink Improved Heat Sink High-capacity Matter Pod EM Pulse Gun Assault Rifle Assault Rifle Assault Rifle Grenade Launcher Rocket Launcher Hammer Explosive Trap Explosive Trap Explosive Trap [Rating: 25] Favorites ----------- Power Ion Engine Engine Ion Engine Power Core Light Nuclear Core Propulsion Wheel Wheel Wheel Utility Huge Storage Unit Device Terrain Scanner Storage Huge Storage Unit Processor Signal Interpreter Protection Light Armor Plating Weapon EM Pulse Gun Energy Gun EM Pulse Gun Ballistic Gun Assault Rifle Launcher Rocket Launcher Slashing Weapon Mining Claw Build | -11 -10 -10 -10 -9 ------- Run | Yrd Mat Min Exi Min Slots Evolved . | . . . . . Power . | . . . . . Propulsion . | . . . . . Utility . | . . . . . Weapon . | . . . . . Parts Attached 28 | 6 11 7 2 2 Power 3 | 1 . 2 . . Engine 2 | 1 . 1 . . Core 1 | . . 1 . . Reactor . | . . . . . Propulsion 6 | 2 3 1 . . Treads . | . . . . . Leg . | . . . . . Wheel 6 | 2 3 1 . . Hover . | . . . . . Flight . | . . . . . Utility 8 | 1 3 3 1 . Device 3 | . . 2 1 . Storage 3 | 1 2 . . . Processor 1 | . . 1 . . Hackware . | . . . . . Protection 1 | . 1 . . . Artifact . | . . . . . Weapon 11 | 2 5 1 1 2 Energy Gun 4 | . 3 1 . . Energy Cannon . | . . . . . Ballistic Gun 4 | 2 1 . 1 . Ballistic Cannon . | . . . . . Launcher 2 | . . . . 2 Special Weapon . | . . . . . Impact Weapon . | . . . . . Slashing Weapon 1 | . 1 . . . Piercing Weapon . | . . . . . Special Melee Weapon . | . . . . . Unidentified Prototypes . | . . . . . Parts Lost 9 | . 2 7 . . Power 1 | . . 1 . . Propulsion 3 | . 1 2 . . Utility 1 | . . 1 . . Weapon 4 | . 1 3 . . Highest Loss Streak 7 | . 1 7 . . To Critical Strikes . | . . . . . Average Backups 10 | 1 9 11 11 11 Power . | . 1 . 1 1 Propulsion 1 | . 1 1 1 1 Utility 3 | . 2 5 4 3 Weapon 5 | . 4 3 4 6 Tool/Special . | . . . . . Unused Backups 8 | . . . 2 6 Power . | . . . . . Propulsion 1 | . . . . 1 Utility 3 | . . . 2 1 Weapon 4 | . . . . 4 Tool/Special . | . . . . . Average Slot Usage (%) 93 | . 95 97 94 86 Engine 8 | . 14 8 . . Core 5 | . . 6 14 14 Wheel 27 | . 27 26 28 28 Device 5 | . . 10 7 14 Storage 14 | . 14 14 14 14 Protection 6 | . 11 3 . . Energy Gun 13 | . 18 17 8 . Ballistic Gun 8 | . 5 10 14 12 Slashing Weapon 1 | . 3 . . . Peak Build Rating 25 | 6 8 12 24 25 Average Rating 12 | 5 7 9 15 23 On Entrance 9 | . 6 8 10 24 Naked Turns . | . . . . . Heaviest Build 96 | 14 92 92 96 96 Greatest Support 26 | 20 26 26 26 26 Greatest Overweight (x) 28 | . 28 8 3 3 Average Overweight (x) 2 | . 2 3 3 3 Largest Inventory Capacity 25 | 8 25 25 25 25 Average Capacity 23 | 7 23 25 25 25 Most Carried 16 | 2 15 15 13 16 Average Carried 11 | 1 9 11 11 14 Final Capacity 25 | 8 25 25 25 25 Final Carried 15 | 2 15 12 11 15 Class Distribution -------------------- 71% | Mutant 22% | Skirmisher 5% | Scavenger-Mutant Dominant Class ---------------- Mutant | -10/Materials Mutant | -10/Mines Mutant | -10/Exiles Skirmisher | -9/Mines Resources | -11 -10 -10 -10 -9 ----------- Run | Yrd Mat Min Exi Min Matter Collected 1036 | 239 552 196 . 49 Remotely . | . . . . . Salvage Created 771 | . 612 133 . 26 Parts 47 | . 33 6 . 8 Haulers Intercepted 2 | . 2 . . . Recyclers Shooed . | . . . . . Parts Field Recycled . | . . . . . Retrieved Matter . | . . . . . Parts Self-Destructed . | . . . . . Prevented . | . . . . . Kills | -11 -10 -10 -10 -9 ------- Run | Yrd Mat Min Exi Min Combat Hostiles Destroyed 19 | . 12 4 . 3 Guns 16 | . 12 4 . . AOE 3 | . . . . 3 Classes Destroyed 7 | . 7 . . . Worker 1 | . 1 . . . Builder 1 | . 1 . . . Hauler 2 | . 2 . . . Recycler 1 | . 1 . . . Watcher 3 | . 3 . . . Swarmer 11 | . 6 2 . 3 Grunt 8 | . 6 2 . . Best Kill Streak 5 | . 5 2 . 3 Combat Bots Only 3 | . 3 2 . 3 Max Kills in Single Turn 3 | . 1 1 . 3 Gunslinging . | . . . . . Exploded 3 | . . . . 3 Melee . | . . . . . Uniques/NPCs Destroyed . | . . . . . Combat | -11 -10 -10 -10 -9 -------- Run | Yrd Mat Min Exi Min Hostile Shots Fired 92 | . 63 28 . 1 Missed 23 | . 17 6 . . Hits 69 | . 46 22 . 1 Projectile 69 | . 46 22 . 1 AOE 10 | . . 10 . . Critical Strikes 2 | . 1 1 . . Damage Taken 1041 | . 477 558 . 6 Core 254 | . 74 174 . 6 Absorbed by Shields . | . . . . . Core Remaining (%) 100 | 100 . . . . Volleys Fired 72 | . 55 16 . 1 Largest 2 | . 2 2 . 1 Hottest 80 | . 80 80 . 33 Shots Fired 130 | . 100 29 . 1 Gun 129 | . 100 29 . . Cannon . | . . . . . Launcher 1 | . . . . 1 Special . | . . . . . Kinetic 84 | . 76 8 . . Thermal . | . . . . . Explosive 1 | . . . . 1 Electromagnetic 45 | . 24 21 . . Robot Hit Streak 11 | . 6 11 . . Robot Miss Streak 6 | . 6 4 . . Penetration Max . | . . . . . Secondary Targets 2 | . 2 . . . Max Gunslinging Chain 1 | . 1 . . . Shots Hit Robots 87 | . 69 18 . . Core Hits 44 | . 31 10 . 3 Critical Kills . | . . . . . Critical Parts Destroyed . | . . . . . Critical Strikes . | . . . . . Melee Attacks 22 | . 22 . . . Impact . | . . . . . Slashing 22 | . 22 . . . Piercing . | . . . . . Sneak Attacks 2 | . 2 . . . Combat Hostiles . | . . . . . Follow-up Attacks . | . . . . . Damage Inflicted 1596 | . 1173 228 . 195 Guns 1059 | . 831 228 . . Cannons . | . . . . . Explosions 324 | . 129 . . 195 Melee 213 | . 213 . . . Ramming . | . . . . . Kinetic 626 | . 578 48 . . Thermal 129 | . 129 . . . Explosive 195 | . . . . 195 Electromagnetic 433 | . 253 180 . . Impact . | . . . . . Slashing 213 | . 213 . . . Piercing . | . . . . . Highest Corruption . | . . . . . Average Corruption . | . . . . . Corruption Purged . | . . . . . Corruption Blocked . | . . . . . Overload Shots . | . . . . . Overflow Damage 10 | . 3 . . 7 Projectiles . | . . . . . Explosions 7 | . . . . 7 Melee 3 | . 3 . . . Knockbacks . | . . . . . Impact . | . . . . . Kinetic . | . . . . . Secondary . | . . . . . Self-Inflicted Damage 30 | . 30 . . . Shots 1 | . 1 . . . Rammed . | . . . . . Targets Rammed . | . . . . . Kicked . | . . . . . Crushed . | . . . . . Highest Temperature 174 | . 174 108 . . Average Temperature 54 | . 58 44 . . Received Heat Transfer 216 | . 150 66 . . Siege Activations . | . . . . . Martial Activations . | . . . . . Shielding Activations . | . . . . . Robots Disrupted . | . . . . . Combat Hostiles . | . . . . . Robots Corrupted . | . . . . . Combat Hostiles . | . . . . . Parts Fried 1 | . 1 . . . Impact Corruptions . | . . . . . Robots Melted . | . . . . . Combat Hostiles . | . . . . . Parts Melted . | . . . . . Heat Transferred 100 | . 100 . . . Parts Sabotaged . | . . . . . Parts Stolen . | . . . . . Parts Stripped . | . . . . . Power Chain Reactions 2 | . 2 . . . Alert | -11 -10 -10 -10 -9 ------- Run | Yrd Mat Min Exi Min Maximum Alert Level . | . . . . . Low Security (%) 100 | 100 100 100 . 100 Level 1 . | . . . . . Level 2 . | . . . . . Level 3 . | . . . . . Level 4 . | . . . . . Level 5 . | . . . . . High Security . | . . . . . Max Security . | . . . . . Peak Influence 163 | . 163 55 . 79 Initial . | . . . . . Average 18 | . 30 5 . . Influence Increases 617 | . 423 115 . 79 Destroy 0b10 Robot/C 380 | . 240 80 . 60 Destroy 0b10 Robot/NC 40 | . 40 . . . Destroy Leader 100 | . 70 20 . 10 Successful Hack 18 | . 18 . . . Disable Machine 15 | . 15 . . . Destroy Structure 19 | . 10 . . 9 Lose Combat Pursuer 45 | . 30 15 . . Influence Decreases 538 | . 423 115 . . Time Decay 463 | . 403 60 . . Lost Part 75 | . 20 55 . . Squads Dispatched 2 | . 2 . . . Investigation 1 | . 1 . . . Extermination . | . . . . . Reinforcement 1 | . 1 . . . Assault . | . . . . . Garrison . | . . . . . Intercept . | . . . . . Searches Triggered . | . . . . . Construction Impeded . | . . . . . Haulers Reinforced . | . . . . . Active Scanning Responses . | . . . . . Cargo Convoy Interrupts . | . . . . . Stealth | -11 -10 -10 -10 -9 --------- Run | Yrd Mat Min Exi Min Distress Signals 2 | . 2 . . . Communications Jammed . | . . . . . Distress Signals . | . . . . . Times Spotted 26 | . 19 6 . 1 Peak Tracking Total 5 | . 5 5 . . Tactical Retreats 2 | . 1 1 . . Traps | -11 -10 -10 -10 -9 ------- Run | Yrd Mat Min Exi Min Traps Triggered 5 | . 5 . . . Indirectly . | . . . . . Trap Hack Attempts . | . . . . . Triggered . | . . . . . Disarmed . | . . . . . Reprogrammed . | . . . . . Reused . | . . . . . Traps Extracted . | . . . . . Installed . | . . . . . Triggered . | . . . . . Most Traps Carried 3 | . . . . 3 Machines | -11 -10 -10 -10 -9 ---------- Run | Yrd Mat Min Exi Min Machines Disabled 1 | . 1 . . . Max in Single Turn 1 | . 1 . . . Machines Repaired . | . . . . . Machines Dismantled . | . . . . . Machines Sabotaged . | . . . . . Overloaded Fab Kills . | . . . . . Hacking | -11 -10 -10 -10 -9 --------- Run | Yrd Mat Min Exi Min Machines Accessed 10 | . 8 . 2 . Terminals 7 | . 7 . . . Fabricators . | . . . . . Repair Stations . | . . . . . Recycling Units 1 | . 1 . . . Scanalyzers . | . . . . . Garrison Access . | . . . . . Total Hacks 20 | . 18 . 2 . Successful 14 | . 12 . 2 . Failed 6 | . 6 . . . Catastrophic 1 | . 1 . . . Database Lockouts . | . . . . . Manual 14 | . 13 . 1 . Terminals 17 | . 17 . . . Fabricators . | . . . . . Repair Stations . | . . . . . Recycling Units 1 | . 1 . . . Scanalyzers . | . . . . . Garrison Access . | . . . . . Terminal Hacks 4 | . 2 . 2 . Record 1 | . . . 1 . Branch Access Points 1 | . 1 . . . Zone Layout 1 | . 1 . . . Proto ID Catalog 1 | . . . 1 . Fabricator Hacks . | . . . . . Repair Station Hacks . | . . . . . Recycling Unit Hacks 1 | . 1 . . . Retrieve Components 1 | . 1 . . . Scanalyzer . | . . . . . Garrison Access Hacks . | . . . . . Unauthorized Hacks 9 | . 9 . . . Terminals 9 | . 9 . . . Botnet 4 | . 4 . . . Skim 5 | . 5 . . . Fabricators . | . . . . . Repair Stations . | . . . . . Recycling Units . | . . . . . Scanalyzers . | . . . . . Garrison Access . | . . . . . Data Cores Recovered . | . . . . . Used . | . . . . . Hacking Detections 7 | . 7 . . . Full Trace Events 1 | . 1 . . . Feedback Events . | . . . . . Feedback Blocked . | . . . . . Robot Schematics Acquired . | . . . . . Robots Built . | . . . . . Authchips . | . . . . . Time . | . . . . . Total Robot Build Rating . | . . . . . Part Schematics Acquired . | . . . . . Parts Built . | . . . . . Authchips . | . . . . . Time . | . . . . . Total Part Build Rating . | . . . . . Parts Repaired . | . . . . . Time . | . . . . . Parts Recycled . | . . . . . Recycled Matter . | . . . . . Retrieved Matter . | . . . . . Retrieved Components 9 | . 9 . . . Parts Scanalyzed . | . . . . . Part Schematics Acquired . | . . . . . Parts Damaged . | . . . . . Bothacking | -11 -10 -10 -10 -9 ------------ Run | Yrd Mat Min Exi Min Used RIF Installer . | . . . . . Robots Hacked . | . . . . . Non-combat . | . . . . . Combat . | . . . . . Robot Hacks Applied . | . . . . . Relay Couplers Released . | . . . . . Fabnet Peak Effective % . | . . . . . Robots Rewired . | . . . . . Allies Hacked . | . . . . . Hacks Repelled . | . . . . . Allies | -11 -10 -10 -10 -9 -------- Run | Yrd Mat Min Exi Min Total Allies . | . . . . . Largest Group . | . . . . . Highest-Rated Group . | . . . . . Highest-Rated Ally . | . . . . . Total Orders . | . . . . . Ally Attacks . | . . . . . Total Damage . | . . . . . Kills . | . . . . . Allies Corrupted . | . . . . . Allies Melted . | . . . . . Intel | -11 -10 -10 -10 -9 ------- Run | Yrd Mat Min Exi Min Active Infowar (turns) 976 | . . . 174 802 Terrain 976 | . . . 174 802 Robot Analysis Total . | . . . . . Derelict Logs Recovered 2 | . . 2 . . Drone Launches . | . . . . . Drone Recoveries . | . . . . . Exploration | -11 -10 -10 -10 -9 ------------- Run | Yrd Mat Min Exi Min Turns Passed 3571 | 55 1896 483 335 802 Spaces Moved 2077 | 51 889 305 245 587 Core 2 | 1 1 . . . Treads . | . . . . . Legs . | . . . . . Wheels 2075 | 50 888 305 245 587 Hover . | . . . . . Flight . | . . . . . Fastest Speed 50 | 50 80 135 135 135 Average Speed 130 | 79 128 136 135 135 Slowest Speed 1450 | 80 1450 200 135 135 Overloaded Moves . | . . . . . Propulsion Burnouts . | . . . . . Robots Hopped . | . . . . . Potential Cave-ins . | . . . . . Cave-ins Triggered . | . . . . . Exploration Rate (%) 61 | 3 97 55 61 90 Regions Visited 4 Branch Regions 3 Pre-discovered Areas 4 | . 1 1 1 1 Known Exits Taken 2 | . 1 1 . . Unknown Exits Taken 2 | 1 . . 1 . Scrap Searched 3 | . . 1 . 2 Spaces Dug 5 | . 5 . . . Terrain Destroyed 20 | . 9 . . 11 Melee 5 | . 5 . . . Projectile . | . . . . . AOE 15 | . 4 . . 11 Terrain Rammed . | . . . . . Walls Destroyed . | . . . . . Machines Disabled . | . . . . . Actions | -11 -10 -10 -10 -9 --------- Run | Yrd Mat Min Exi Min Total 2744 | 62 1491 342 252 597 Wait 497 | 4 484 9 . . Move 2073 | 50 888 304 244 587 Hop . | . . . . . Pick Up 25 | 2 15 2 1 5 Fast Attach 18 | 6 11 1 . . Attach 11 | . 1 6 2 2 Detach 3 | . . . 2 1 Swap 14 | . 11 3 . . Drop 9 | . 4 1 3 1 Fire 72 | . 55 16 . 1 Melee 22 | . 22 . . . Ram . | . . . . . Kick . | . . . . . Crush . | . . . . . Escape Stasis . | . . . . . Rewire . | . . . . . Trap . | . . . . . Miscellaneous . | . . . . . Route ------- -11/Scrapyard -10/Materials (discovered 6 exits: *Mat x3 / *Min x2 / *Sub) -10/Mines (discovered 3 exits: *Mat x2 / *Exi) -10/Exiles -9/Mines History --------- Turn | Location | Event 24 | -11/Scrapyard | Discovered new exit (range 15) 56 | -11/Scrapyard | Entered Materials 188 | -10/Materials | Discovered new exit (range 12) 309 | -10/Materials | Build established: Mutant 644 | -10/Materials | Discovered new exit (range 9) 667 | -10/Materials | Discovered new exit (range 15) 769 | -10/Materials | Discovered new exit (range 13) 954 | -10/Materials | Discovered new exit (range 11) 1429 | -10/Materials | Discovered new exit (range 4) 1461 | -10/Materials | Identified exit to Mines 1470 | -10/Materials | Learned 2 Storage zone layouts 1547 | -10/Materials | Learned 4 Recycling zone layouts 1675 | -10/Materials | Learned location of Storage (-9) 1725 | -10/Materials | Learned 2 Storage zone layouts 1766 | -10/Materials | Learned 4 Subcaves zone layouts 1880 | -10/Materials | Identified exit to Materials 1880 | -10/Materials | Identified exit to Subcaves 1952 | -10/Materials | Entered Mines 1986 | -10/Mines | Assembled infested the area 2054 | -10/Mines | Met 8R-AWN 2064 | -10/Mines | Core integrity fell below 50% 2070 | -10/Mines | Core integrity fell below 20% 2100 | -10/Mines | Lost 7 parts (1p2n1u3w) 2115 | -10/Mines | Learned location of Recycling (-9) 2320 | -10/Mines | YI-UF0 nonchalantly dropped a Grenade Launcher on the ground 2428 | -10/Mines | Discovered new exit (range 5) 2434 | -10/Mines | Identified exit to Exiles 2435 | -10/Mines | Entered Exiles 2469 | -10/Exiles | Welcomed by 8R-AWN 2488 | -10/Exiles | Met EX-HEX 2545 | -10/Exiles | Met EX-DEC 2550 | -10/Exiles | Learned location of Zion (-7) 2573 | -10/Exiles | Met EX-BIN 2592 | -10/Exiles | Aligned with FarCom system 2593 | -10/Exiles | Given EX-Vault access code 2630 | -10/Exiles | Opened EX-Vault 2640 | -10/Exiles | Found AWS/Gauss 2669 | -10/Exiles | Warned to stay clear of 0b10 Research branches 2757 | -10/Exiles | Discovered new exit (range 12) 2770 | -10/Exiles | Left Exiles lab with AWS/Gauss 2770 | -10/Exiles | Entered Mines 2813 | -9/Mines | Received a Rocket Launcher from a helpful Derelict 2865 | -9/Mines | Found a hidden stash of uninstalled traps 2999 | -9/Mines | A weapon hastily lodged in a ceiling crevice suddenly fell to the ground 3059 | -9/Mines | Build established: Skirmisher 3572 | -9/Mines | Destroyed by S-10 Pest with Light Assault Rifle Last Messages --------------- 02935_ Found Mining Laser. 02935_ Found Trap Extractor. 02935_ Found 49 Matter. 02936_ Acquired 30 matter. 02938_ K-01 Serf collects debris. 02999_ A Mak. Spear has been hastily shoved under some rubble with a note attached: "Stab them where it hurts!" 03000_ Dropped Hammer. 03002_ Acquired Mak. Spear. 03005_ R-06 Scavenger collects Hammer. 03016_ T-07 Excavator is excavating. 03385_ Searching scrap... 03385_ Found Huge Storage Unit. 03385_ Found 54 Matter. 03530_ Acquired 19 matter. 03551_ K-01 Serf cleans the Pressure Siphon. 03568_ K-01 Serf collects debris. 03571_ Destroyed Flight Unit. Map ----- +----------------------------------------------------+ | ????????????????????## ##### #?##??## | | ???????????????????## #?## ##????# | | ??????????????????## #?# ##??# | | ?????????????????## ##?# ##?## | | ????????????????## ##??## #?### | | ????????????????# ##?##?# #?#?## | | ????????????????# ###???## ##???### | | ???????????#????# #?#??## ] ##?????? | | ????????????????# #???## | ######?? | | ??????????????#?## #??## =! ## ### | | ????????????#????#####???# ## | | ??????????????????????#?## # | | ????????????????########### | | ????????????????# | | ??????#?#?#?????# ### | | ??????????????#?# ######### #?## | | ?????????#####?## ##????#?# #??## | | ????????## ### ##???#?# ##???## | | ??????### ##?#??# #????#? | | ?#?????# ##???## ###???# | | ???????# u ###### ## ##?????? | | ???????# k #####?????#? | | ???????## u ####### #????####?#? | | ????????# ###????## #???## #### | | ???????## ###??????# ##### | | ??????## @##?????### | | ??????# """" #????## ## | | ??????# """" ##???# ## | | ??#???## """" ##?#??# ## ## | | ???????# # ##??#??## #### ## | | ???????# ## #?????#?## ##?## ### | | ???????# #### #??????#?## ##?## ## | | ??#????# #??## #?##??????# ##?## # | | #??????#!#???# #???????#?# #### | | ???????#%#???# ##?#???????# ## | | ???????# #???# #??????????## # | | ???????# #??? s????????????#### #### | | ???????# #??? ??????#????????## ##??? | | ???????# #??? ????????????#???# ##### | | ???????# #???=[ ??????# ######### | | ???????# #???????#????# | | ???????# ?????????????########### ###### | | ???????###???????????????????????####?#??? | | ?????#???????????????????????????????????? | | ?????????????????????#??????????????????#? | | ??????????????????????????#??????????????? | | ?????????????????????????#???????????????? | | ??????????????????????????#????????????#?? | | | | | +----------------------------------------------------+ Best States ------------- Heat Dissipation 39 Energy Generation 14 Energy Capacity 250 Matter Stores 300 Matter Capacity 300 Sight Range 16 Terrain Scan Range 14 Terrain Scan Density 10 Armor Coverage 150 Evasion (%) 44 Item Schematics ----------------- None Robot Schematics ------------------ None Fabricated ------------ Nothing Repaired ---------- Nothing Alien Tech Used ----------------- None Achievements -------------- None Challenges ------------ None Game ------ Seed DirtyThermicRegenerator Manual? 0 Play Time 00:23:28 Cumulative 23.9 hours Start 2025.10.14 @ 09:23:21 End 2025.10.14 @ 09:46:37 Sessions 1 Manual Loads 0 Difficulty Rogue Special Mode None Game No. 26 Rogue 26 Adventurer 0 Explorer 0 Win Type - Total 0 Types 0/0/0/0/0/0/0/0/0/0 Lore% 20 Gallery% 18 Achievement% 21 Wizard Run 0 Options --------- Layout 1 ASCII 0 Keyboard 0 Movement Numpad Keybinds 0 Fullscreen 1 Font 24/Crisp Map View 50x35 Zoom Use 0% Tactical HUD 1 Map Filters NONE Filters NONE Steam 1 RUN: 36a4a776-9d11-4ea2-887c-4af50b6a102b